[Event "Chessable Masters - Torneo preliminare"]
[White "Andreikin, Dmitry"]
[Black "Henriquez Villagra, Cristobal"]
[WhiteFideId "4158814"]
[BlackFideId "3409350"]
[WhiteElo "2628"]
[BlackElo "2574"]
[Result "1-0"]
[Round "6"]
[TimeControl "600+2"]
[Date "2023.03.13"]
[WhiteClock "0:01:35"]
[BlackClock "0:00:19"]

1. d4 {[%clk 0:10:01]}  Nf6 {[%clk 0:09:59]} 2. c4 {[%clk 0:10:03]}  g6 {[%clk 0:09:57]} 3. Nc3 {[%clk 0:10:03]}  d6 {[%clk 0:09:59]} 4. e4 {[%clk 0:10:03]}  Bg7 {[%clk 0:10:00]} 5. h3 {[%clk 0:10:01]}  e5 {[%clk 0:10:00]} 6. d5 {[%clk 0:09:57]}  Na6 {[%clk 0:09:57]} 7. Bd3 {[%clk 0:09:56]}  Nc5 {[%clk 0:09:37]} 8. Bc2 {[%clk 0:09:57]}  a5 {[%clk 0:09:39]} 9. Be3 {[%clk 0:09:56]}  Bd7 {[%clk 0:09:18]} 10. Nge2 {[%clk 0:09:48]}  h5 {[%clk 0:09:09]} 11. Qd2 {[%clk 0:09:46]}  b6 {[%clk 0:09:00]} 12. O-O-O {[%clk 0:09:39]}  h4 {[%clk 0:09:01]} 13. Bg5 {[%clk 0:09:12]}  Rh5 {[%clk 0:07:00]} 14. Be3 {[%clk 0:09:11]}  a4 {[%clk 0:06:48]} 15. Rhf1 {[%clk 0:09:10]}  Qc8 {[%clk 0:06:45]} 16. f4 {[%clk 0:08:57]}  Qa6 {[%clk 0:06:38]} 17. fxe5 {[%clk 0:07:08]}  Rxe5 {[%clk 0:06:38]} 18. Bd4 {[%clk 0:07:09]}  Nh5 {[%clk 0:05:51]} 19. Bd3 {[%clk 0:07:05]}  a3 {[%clk 0:05:26]} 20. b4 {[%clk 0:06:49]}  Nxd3+ {[%clk 0:04:28]} 21. Qxd3 {[%clk 0:06:51]}  Kf8 {[%clk 0:04:27]} 22. b5 {[%clk 0:06:29]}  Qa5 {[%clk 0:04:16]} 23. Kc2 {[%clk 0:06:29]}  Kg8 {[%clk 0:04:12]} 24. Kb3 {[%clk 0:06:28]}  Rg5 {[%clk 0:03:52]} 25. Bxg7 {[%clk 0:06:19]}  Kxg7 {[%clk 0:03:54]} 26. Qd4+ {[%clk 0:06:06]}  Kg8 {[%clk 0:03:44]} 27. Rf2 {[%clk 0:06:05]}  Re8 {[%clk 0:03:39]} 28. Rd3 {[%clk 0:05:59]}  Ree5 {[%clk 0:03:20]} 29. Rdf3 {[%clk 0:05:59]}  Be8 {[%clk 0:03:09]} 30. Qd2 {[%clk 0:05:46]}  Qa8 {[%clk 0:03:04]} 31. Qc1 {[%clk 0:04:51]}  Qd8 {[%clk 0:03:02]} 32. Kxa3 {[%clk 0:04:41]}  Qe7 {[%clk 0:02:58]} 33. Kb3 {[%clk 0:04:39]}  Bd7 {[%clk 0:01:48]} 34. a4 {[%clk 0:04:38]}  f5 {[%clk 0:01:45]} 35. exf5 {[%clk 0:03:48]}  Bxf5 {[%clk 0:01:47]} 36. Nd4 {[%clk 0:03:49]}  Rg3 {[%clk 0:01:26]} 37. Nc6 {[%clk 0:03:31]}  Qf6 {[%clk 0:01:15]} 38. Nxe5 {[%clk 0:03:31]}  Qxe5 {[%clk 0:01:17]} 39. Re2 {[%clk 0:03:22]}  Qg7 {[%clk 0:00:38]} 40. Re8+ {[%clk 0:03:04]}  Kf7 {[%clk 0:00:29]} 41. Qe3 {[%clk 0:02:45]}  Qf6 {[%clk 0:00:27]} 42. Rb8 {[%clk 0:02:03]}  Ng7 {[%clk 0:00:28]} 43. Rxg3 {[%clk 0:01:41]}  hxg3 {[%clk 0:00:30]} 44. Qxg3 {[%clk 0:01:42]}  Qd4 {[%clk 0:00:29]} 45. Qf3 {[%clk 0:01:37]}  Qd2 {[%clk 0:00:30]} 46. Qe2 {[%clk 0:01:35]}  Qc1 {[%clk 0:00:19]} 47. g4 {[%clk 0:01:35]} 1-0


[Site "Internet"]

[Event "Chessable Masters - Torneo preliminare"]
[White "Sychev, Klementy"]
[Black "Svidler, Peter"]
[WhiteFideId "4114060"]
[BlackFideId "4102142"]
[WhiteElo "2484"]
[BlackElo "2752"]
[Result "1-0"]
[Round "6"]
[TimeControl "600+2"]
[Date "2023.03.13"]
[WhiteClock "0:07:18"]
[BlackClock "0:06:13"]

1. e4 {[%clk 0:09:59]}  c5 {[%clk 0:10:00]} 2. Nf3 {[%clk 0:09:59]}  e6 {[%clk 0:10:01]} 3. d4 {[%clk 0:10:00]}  cxd4 {[%clk 0:10:02]} 4. Nxd4 {[%clk 0:10:01]}  a6 {[%clk 0:10:03]} 5. Bd3 {[%clk 0:10:03]}  Bc5 {[%clk 0:10:03]} 6. Nb3 {[%clk 0:10:00]}  Be7 {[%clk 0:10:04]} 7. O-O {[%clk 0:09:20]}  d6 {[%clk 0:10:01]} 8. Qg4 {[%clk 0:09:21]}  Bf6 {[%clk 0:09:43]} 9. Nc3 {[%clk 0:09:03]}  Ne7 {[%clk 0:09:32]} 10. f4 {[%clk 0:08:55]}  Nbc6 {[%clk 0:08:57]} 11. Qh5 {[%clk 0:08:36]}  O-O {[%clk 0:08:18]} 12. Be3 {[%clk 0:08:37]}  g6 {[%clk 0:08:05]} 13. Qf3 {[%clk 0:08:02]}  Bg7 {[%clk 0:07:56]} 14. Rad1 {[%clk 0:08:01]}  Qc7 {[%clk 0:07:47]} 15. a4 {[%clk 0:07:53]}  b6 {[%clk 0:07:35]} 16. Kh1 {[%clk 0:07:47]}  Bb7 {[%clk 0:07:30]} 17. Qf2 {[%clk 0:07:47]}  Bxc3 {[%clk 0:06:13]} 18. Bxb6 {[%clk 0:07:18]} 1-0


[Site "Internet"]

[Event "Chessable Masters - Torneo preliminare"]
[White "Mamedyarov, Shakhriyar"]
[Black "Sjugirov, Sanan"]
[WhiteFideId "13401319"]
[BlackFideId "4189302"]
[WhiteElo "2703"]
[BlackElo "2543"]
[Result "1-0"]
[Round "6"]
[TimeControl "600+2"]
[Date "2023.03.13"]
[WhiteClock "0:01:41"]
[BlackClock "0:00:04"]

1. d4 {[%clk 0:10:01]}  Nf6 {[%clk 0:10:01]} 2. c4 {[%clk 0:10:02]}  e6 {[%clk 0:10:02]} 3. Nc3 {[%clk 0:10:04]}  Bb4 {[%clk 0:10:02]} 4. g3 {[%clk 0:10:05]}  Bxc3+ {[%clk 0:09:54]} 5. bxc3 {[%clk 0:10:06]}  d6 {[%clk 0:09:27]} 6. Bg2 {[%clk 0:10:06]}  e5 {[%clk 0:09:14]} 7. a4 {[%clk 0:09:31]}  O-O {[%clk 0:08:33]} 8. a5 {[%clk 0:09:30]}  e4 {[%clk 0:08:07]} 9. Bg5 {[%clk 0:09:12]}  Re8 {[%clk 0:08:01]} 10. Qb1 {[%clk 0:09:12]}  c5 {[%clk 0:04:36]} 11. Bxe4 {[%clk 0:07:47]}  cxd4 {[%clk 0:03:56]} 12. Bxh7+ {[%clk 0:04:17]}  Kh8 {[%clk 0:03:51]} 13. cxd4 {[%clk 0:03:49]}  Nc6 {[%clk 0:03:51]} 14. Bd3 {[%clk 0:03:18]}  d5 {[%clk 0:02:07]} 15. c5 {[%clk 0:03:19]}  Nxd4 {[%clk 0:01:48]} 16. Qb4 {[%clk 0:03:07]}  Ne6 {[%clk 0:00:56]} 17. Nf3 {[%clk 0:03:06]}  Kg8 {[%clk 0:00:40]} 18. O-O {[%clk 0:03:02]}  Qe7 {[%clk 0:00:34]} 19. Bxf6 {[%clk 0:02:33]}  Qxf6 {[%clk 0:00:35]} 20. Rfc1 {[%clk 0:02:33]}  Nd8 {[%clk 0:00:08]} 21. Qb3 {[%clk 0:02:20]}  Be6 {[%clk 0:00:06]} 22. a6 {[%clk 0:02:21]}  Rb8 {[%clk 0:00:03]} 23. Rab1 {[%clk 0:02:03]}  Qe7 {[%clk 0:00:04]} 24. c6 {[%clk 0:01:57]}  d4 {[%clk 0:00:04]} 25. c7 {[%clk 0:01:41]} 1-0


[Site "Internet"]

[Event "Chessable Masters - Torneo preliminare"]
[White "Sadhwani, Raunak"]
[Black "Mitrabha, Guha"]
[WhiteFideId "35093487"]
[BlackFideId "5057000"]
[WhiteElo "2550"]
[BlackElo "2401"]
[Result "1-0"]
[Round "6"]
[TimeControl "600+2"]
[Date "2023.03.13"]
[WhiteClock "0:02:51"]
[BlackClock "0:06:36"]

1. e4 {[%clk 0:10:01]}  e6 {[%clk 0:09:57]} 2. d4 {[%clk 0:10:02]}  d5 {[%clk 0:09:58]} 3. Nc3 {[%clk 0:10:04]}  Bb4 {[%clk 0:09:58]} 4. e5 {[%clk 0:10:05]}  c5 {[%clk 0:09:51]} 5. a3 {[%clk 0:10:04]}  Bxc3+ {[%clk 0:09:52]} 6. bxc3 {[%clk 0:10:06]}  Qc7 {[%clk 0:09:54]} 7. h4 {[%clk 0:10:00]}  cxd4 {[%clk 0:09:30]} 8. cxd4 {[%clk 0:10:02]}  Qc3+ {[%clk 0:09:28]} 9. Bd2 {[%clk 0:10:03]}  Qxd4 {[%clk 0:09:25]} 10. Nf3 {[%clk 0:10:04]}  Qg4 {[%clk 0:09:08]} 11. h5 {[%clk 0:10:00]}  Qa4 {[%clk 0:08:38]} 12. Rh4 {[%clk 0:09:58]}  Qd7 {[%clk 0:08:38]} 13. Bd3 {[%clk 0:09:25]}  Nc6 {[%clk 0:08:17]} 14. Qe2 {[%clk 0:09:08]}  h6 {[%clk 0:08:13]} 15. Rg4 {[%clk 0:09:07]}  Kf8 {[%clk 0:08:14]} 16. a4 {[%clk 0:07:28]}  Nge7 {[%clk 0:08:08]} 17. a5 {[%clk 0:07:29]}  Qc7 {[%clk 0:08:02]} 18. c4 {[%clk 0:06:21]}  Bd7 {[%clk 0:07:55]} 19. cxd5 {[%clk 0:06:16]}  exd5 {[%clk 0:07:55]} 20. Rf4 {[%clk 0:06:12]}  Be6 {[%clk 0:07:56]} 21. Rc1 {[%clk 0:06:12]}  Qd7 {[%clk 0:07:55]} 22. a6 {[%clk 0:06:00]}  bxa6 {[%clk 0:07:47]} 23. Bxa6 {[%clk 0:06:02]}  Rb8 {[%clk 0:07:46]} 24. Bb5 {[%clk 0:05:45]}  Qb7 {[%clk 0:07:38]} 25. Bd3 {[%clk 0:05:43]}  a5 {[%clk 0:07:34]} 26. Kf1 {[%clk 0:05:34]}  Nb4 {[%clk 0:07:21]} 27. Nd4 {[%clk 0:05:29]}  Qb6 {[%clk 0:07:04]} 28. Bg6 {[%clk 0:05:02]}  Nxg6 {[%clk 0:06:49]} 29. hxg6 {[%clk 0:05:03]}  Kg8 {[%clk 0:06:45]} 30. Nxe6 {[%clk 0:03:20]}  fxe6 {[%clk 0:06:42]} 31. Bxb4 {[%clk 0:03:01]}  axb4 {[%clk 0:06:41]} 32. Rf7 {[%clk 0:03:02]}  b3 {[%clk 0:06:36]} 33. Rcc7 {[%clk 0:02:48]}  Qxc7 {[%clk 0:06:34]} 34. Rxc7 {[%clk 0:02:50]}  b2 {[%clk 0:06:36]} 35. Qxb2 {[%clk 0:02:51]} 1-0


[Site "Internet"]

[Event "Chessable Masters - Torneo preliminare"]
[White "Martinez Alcantara, Jose Eduardo"]
[Black "Shimanov, Aleksandr"]
[WhiteFideId "3805662"]
[BlackFideId "4198603"]
[WhiteElo "2643"]
[BlackElo "2610"]
[Result "1-0"]
[Round "6"]
[TimeControl "600+2"]
[Date "2023.03.13"]
[WhiteClock "0:00:10"]
[BlackClock "0:00:06"]

1. e4 {[%clk 0:10:01]}  e6 {[%clk 0:09:54]} 2. d4 {[%clk 0:10:02]}  d5 {[%clk 0:09:55]} 3. Nd2 {[%clk 0:10:04]}  c5 {[%clk 0:09:56]} 4. Ngf3 {[%clk 0:10:05]}  cxd4 {[%clk 0:09:57]} 5. Nxd4 {[%clk 0:10:06]}  Nf6 {[%clk 0:09:58]} 6. exd5 {[%clk 0:10:06]}  Nxd5 {[%clk 0:10:00]} 7. c3 {[%clk 0:10:07]}  Be7 {[%clk 0:09:49]} 8. N2f3 {[%clk 0:10:05]}  O-O {[%clk 0:09:50]} 9. Bd3 {[%clk 0:10:04]}  b6 {[%clk 0:09:41]} 10. Qe2 {[%clk 0:09:57]}  Nf6 {[%clk 0:08:39]} 11. Be4 {[%clk 0:09:22]}  Nxe4 {[%clk 0:08:30]} 12. Qxe4 {[%clk 0:09:24]}  Qd5 {[%clk 0:08:31]} 13. Qxd5 {[%clk 0:09:25]}  exd5 {[%clk 0:08:33]} 14. O-O {[%clk 0:09:26]}  Bd7 {[%clk 0:07:15]} 15. Ne5 {[%clk 0:09:07]}  Rd8 {[%clk 0:06:34]} 16. Re1 {[%clk 0:08:44]}  Be8 {[%clk 0:06:28]} 17. Nef3 {[%clk 0:07:30]}  Bc5 {[%clk 0:05:28]} 18. Bf4 {[%clk 0:07:28]}  Nd7 {[%clk 0:04:54]} 19. Nf5 {[%clk 0:06:03]}  Nf6 {[%clk 0:03:44]} 20. b4 {[%clk 0:06:02]}  Bf8 {[%clk 0:03:44]} 21. Bg5 {[%clk 0:06:03]}  Rdc8 {[%clk 0:03:41]} 22. Bxf6 {[%clk 0:06:00]}  gxf6 {[%clk 0:03:43]} 23. Ne3 {[%clk 0:04:26]}  Rxc3 {[%clk 0:03:04]} 24. Nxd5 {[%clk 0:04:26]}  Rc6 {[%clk 0:03:06]} 25. b5 {[%clk 0:04:04]}  Re6 {[%clk 0:02:56]} 26. Nc7 {[%clk 0:03:58]}  Rc8 {[%clk 0:02:34]} 27. Nxe6 {[%clk 0:03:58]}  fxe6 {[%clk 0:02:35]} 28. a4 {[%clk 0:04:00]}  e5 {[%clk 0:02:27]} 29. Rac1 {[%clk 0:03:50]}  Bc5 {[%clk 0:02:28]} 30. Nd2 {[%clk 0:03:47]}  Bg6 {[%clk 0:01:23]} 31. Nb3 {[%clk 0:03:46]}  Kf7 {[%clk 0:01:23]} 32. a5 {[%clk 0:02:43]}  Ke6 {[%clk 0:01:23]} 33. Red1 {[%clk 0:02:43]}  Be4 {[%clk 0:01:14]} 34. Nxc5+ {[%clk 0:01:51]}  bxc5 {[%clk 0:01:15]} 35. Rc4 {[%clk 0:01:49]}  Bd5 {[%clk 0:01:10]} 36. Rh4 {[%clk 0:01:49]}  Rc7 {[%clk 0:01:08]} 37. f4 {[%clk 0:01:39]}  c4 {[%clk 0:00:59]} 38. f5+ {[%clk 0:00:48]}  Kd6 {[%clk 0:00:59]} 39. Rh6 {[%clk 0:00:43]}  Rf7 {[%clk 0:00:55]} 40. g4 {[%clk 0:00:31]}  Kc5 {[%clk 0:00:55]} 41. Kf2 {[%clk 0:00:33]}  c3 {[%clk 0:00:41]} 42. Ke3 {[%clk 0:00:34]}  c2 {[%clk 0:00:42]} 43. Rc1 {[%clk 0:00:35]}  Bb3 {[%clk 0:00:44]} 44. b6 {[%clk 0:00:36]}  axb6 {[%clk 0:00:43]} 45. axb6 {[%clk 0:00:38]}  Rd7 {[%clk 0:00:06]} 46. Rxf6 {[%clk 0:00:14]}  Rd1 {[%clk 0:00:06]} 47. b7 {[%clk 0:00:08]}  Rxc1 {[%clk 0:00:06]} 48. b8=Q {[%clk 0:00:09]}  Re1+ {[%clk 0:00:08]} 49. Kf2 {[%clk 0:00:11]}  Rf1+ {[%clk 0:00:06]} 50. Kg3 {[%clk 0:00:10]}  Rg1+ {[%clk 0:00:04]} 51. Kh4 {[%clk 0:00:10]}  c1=Q {[%clk 0:00:06]} 52. Qxe5+ {[%clk 0:00:10]}  Bd5 {[%clk 0:00:05]} 53. Qc7+ {[%clk 0:00:08]}  Kd4 {[%clk 0:00:06]} 54. Qxc1 {[%clk 0:00:08]}  Rxc1 {[%clk 0:00:08]} 55. Kg5 {[%clk 0:00:09]}  Rh1 {[%clk 0:00:08]} 56. Rh6 {[%clk 0:00:10]}  Bg8 {[%clk 0:00:06]} 57. Kf6 {[%clk 0:00:11]}  Rg1 {[%clk 0:00:07]} 58. h3 {[%clk 0:00:12]}  Rg3 {[%clk 0:00:07]} 59. Kg7 {[%clk 0:00:13]}  Bd5 {[%clk 0:00:08]} 60. f6 {[%clk 0:00:07]}  Rf3 {[%clk 0:00:04]} 61. Rxh7 {[%clk 0:00:08]}  Ke5 {[%clk 0:00:04]} 62. Rh5+ {[%clk 0:00:09]}  Ke6 {[%clk 0:00:05]} 63. Rxd5 {[%clk 0:00:09]}  Kxd5 {[%clk 0:00:06]} 64. f7 {[%clk 0:00:10]} 1-0


[Site "Internet"]

[Event "Chessable Masters - Torneo preliminare"]
[White "Perez Ponsa, Federico"]
[Black "Vokhidov, Shamsiddin"]
[WhiteFideId "117927"]
[BlackFideId "14204223"]
[WhiteElo "2586"]
[BlackElo "2514"]
[Result "0-1"]
[Round "6"]
[TimeControl "600+2"]
[Date "2023.03.13"]
[WhiteClock "0:00:13"]
[BlackClock "0:01:24"]

1. e4 {[%clk 0:09:59]}  c5 {[%clk 0:10:00]} 2. Nf3 {[%clk 0:10:00]}  e6 {[%clk 0:10:01]} 3. d4 {[%clk 0:09:59]}  cxd4 {[%clk 0:10:03]} 4. Nxd4 {[%clk 0:10:00]}  Nc6 {[%clk 0:10:05]} 5. Nc3 {[%clk 0:09:59]}  Qc7 {[%clk 0:10:06]} 6. Be3 {[%clk 0:09:54]}  a6 {[%clk 0:10:07]} 7. Qd2 {[%clk 0:09:55]}  Nf6 {[%clk 0:10:05]} 8. f4 {[%clk 0:09:57]}  b5 {[%clk 0:09:59]} 9. e5 {[%clk 0:09:51]}  Ng4 {[%clk 0:09:59]} 10. Bg1 {[%clk 0:09:43]}  Nxd4 {[%clk 0:09:47]} 11. Bxd4 {[%clk 0:09:29]}  Bb7 {[%clk 0:09:32]} 12. O-O-O {[%clk 0:09:07]}  h5 {[%clk 0:08:22]} 13. Bb6 {[%clk 0:08:42]}  Qc6 {[%clk 0:08:19]} 14. Be2 {[%clk 0:08:28]}  b4 {[%clk 0:07:43]} 15. Ne4 {[%clk 0:08:26]}  d5 {[%clk 0:07:31]} 16. exd6 {[%clk 0:07:50]}  Qxb6 {[%clk 0:07:31]} 17. Bxg4 {[%clk 0:07:44]}  Bxe4 {[%clk 0:07:16]} 18. Rhe1 {[%clk 0:07:34]}  Bc6 {[%clk 0:06:33]} 19. d7+ {[%clk 0:06:33]}  Kd8 {[%clk 0:06:29]} 20. Bxe6 {[%clk 0:05:25]}  fxe6 {[%clk 0:06:29]} 21. Rxe6 {[%clk 0:05:27]}  Be7 {[%clk 0:06:31]} 22. Qe1 {[%clk 0:04:52]}  Bf6 {[%clk 0:05:07]} 23. Rdd6 {[%clk 0:04:11]}  Kc7 {[%clk 0:04:41]} 24. Rxc6+ {[%clk 0:03:22]}  Qxc6 {[%clk 0:04:43]} 25. Rxc6+ {[%clk 0:03:24]}  Kxc6 {[%clk 0:04:45]} 26. Qe6+ {[%clk 0:03:24]}  Kc7 {[%clk 0:04:45]} 27. f5 {[%clk 0:02:40]}  Rhd8 {[%clk 0:03:58]} 28. Qd5 {[%clk 0:01:53]}  Rab8 {[%clk 0:03:50]} 29. Qc4+ {[%clk 0:01:16]}  Kxd7 {[%clk 0:03:51]} 30. Qf7+ {[%clk 0:01:18]}  Kd6 {[%clk 0:03:46]} 31. Qe6+ {[%clk 0:01:15]}  Kc5 {[%clk 0:03:37]} 32. Qe3+ {[%clk 0:01:16]}  Kc6 {[%clk 0:03:29]} 33. Qe6+ {[%clk 0:01:15]}  Kb7 {[%clk 0:03:04]} 34. Qe4+ {[%clk 0:01:13]}  Ka7 {[%clk 0:03:03]} 35. Qe3+ {[%clk 0:01:05]}  Rb6 {[%clk 0:02:58]} 36. g3 {[%clk 0:00:58]}  Rd7 {[%clk 0:02:23]} 37. h3 {[%clk 0:00:57]}  Re7 {[%clk 0:02:24]} 38. Qf2 {[%clk 0:00:52]}  Bg5+ {[%clk 0:02:18]} 39. Kb1 {[%clk 0:00:52]}  Be3 {[%clk 0:02:19]} 40. Qf3 {[%clk 0:00:50]}  h4 {[%clk 0:02:19]} 41. gxh4 {[%clk 0:00:49]}  Bd4 {[%clk 0:02:01]} 42. Qd1 {[%clk 0:00:39]}  Rd6 {[%clk 0:01:55]} 43. c3 {[%clk 0:00:19]}  bxc3 {[%clk 0:01:54]} 44. bxc3 {[%clk 0:00:21]}  Rb7+ {[%clk 0:01:46]} 45. Kc2 {[%clk 0:00:21]}  Rb2+ {[%clk 0:01:43]} 46. Kxb2 {[%clk 0:00:10]}  Bxc3+ {[%clk 0:01:44]} 47. Kc2 {[%clk 0:00:11]}  Rxd1 {[%clk 0:01:46]} 48. Kxd1 {[%clk 0:00:13]}  Kb6 {[%clk 0:01:47]} 49. Ke2 {[%clk 0:00:05]}  Kc5 {[%clk 0:01:48]} 50. Kf3 {[%clk 0:00:06]}  Bf6 {[%clk 0:01:38]} 51. Kg4 {[%clk 0:00:05]}  Kd5 {[%clk 0:01:14]} 52. Kh5 {[%clk 0:00:06]}  Ke5 {[%clk 0:01:09]} 53. Kg6 {[%clk 0:00:06]}  Bxh4 {[%clk 0:01:10]} 54. Kxg7 {[%clk 0:00:05]}  Kxf5 {[%clk 0:01:12]} 55. Kf7 {[%clk 0:00:06]}  Be1 {[%clk 0:01:11]} 56. Ke7 {[%clk 0:00:06]}  Kg5 {[%clk 0:01:11]} 57. Kd6 {[%clk 0:00:03]}  Kh4 {[%clk 0:01:13]} 58. Kc6 {[%clk 0:00:04]}  a5 {[%clk 0:01:14]} 59. Kb5 {[%clk 0:00:04]}  Kxh3 {[%clk 0:01:16]} 60. Kc4 {[%clk 0:00:03]}  Kg3 {[%clk 0:01:18]} 61. Kb3 {[%clk 0:00:04]}  Kf3 {[%clk 0:01:19]} 62. Kb2 {[%clk 0:00:06]}  Ke3 {[%clk 0:01:20]} 63. Kc2 {[%clk 0:00:08]}  Kd4 {[%clk 0:01:21]} 64. Kb2 {[%clk 0:00:10]}  Kc4 {[%clk 0:01:21]} 65. Kc2 {[%clk 0:00:11]}  Bc3 {[%clk 0:01:21]} 66. Kb1 {[%clk 0:00:12]}  Be5 {[%clk 0:01:21]} 67. Kc2 {[%clk 0:00:13]}  Kb4 {[%clk 0:01:23]} 68. Kb1 {[%clk 0:00:13]}  Ka3 {[%clk 0:01:24]} 0-1


[Site "Internet"]

[Event "Chessable Masters - Torneo preliminare"]
[White "Kevlishvili, Robby"]
[Black "Bluebaum, Matthias"]
[WhiteFideId "1040634"]
[BlackFideId "24651516"]
[WhiteElo "2577"]
[BlackElo "2601"]
[Result "0-1"]
[Round "6"]
[TimeControl "600+2"]
[Date "2023.03.13"]
[WhiteClock "0:03:41"]
[BlackClock "0:00:23"]

1. e4 {[%clk 0:10:01]}  e6 {[%clk 0:10:01]} 2. d4 {[%clk 0:10:02]}  d5 {[%clk 0:10:02]} 3. Nd2 {[%clk 0:10:04]}  c5 {[%clk 0:10:03]} 4. Ngf3 {[%clk 0:10:05]}  cxd4 {[%clk 0:10:05]} 5. Nxd4 {[%clk 0:10:07]}  Nf6 {[%clk 0:10:06]} 6. exd5 {[%clk 0:10:07]}  Nxd5 {[%clk 0:10:07]} 7. g3 {[%clk 0:10:07]}  a6 {[%clk 0:09:39]} 8. Bg2 {[%clk 0:09:41]}  Nf4 {[%clk 0:09:28]} 9. gxf4 {[%clk 0:09:41]}  Qxd4 {[%clk 0:09:28]} 10. O-O {[%clk 0:09:03]}  Qxf4 {[%clk 0:08:57]} 11. Ne4 {[%clk 0:09:04]}  Qc7 {[%clk 0:08:57]} 12. Qf3 {[%clk 0:09:01]}  Nc6 {[%clk 0:08:35]} 13. Bf4 {[%clk 0:08:36]}  e5 {[%clk 0:08:34]} 14. Rae1 {[%clk 0:08:19]}  Be7 {[%clk 0:08:23]} 15. Bg3 {[%clk 0:08:02]}  O-O {[%clk 0:08:10]} 16. Nc3 {[%clk 0:08:02]}  Be6 {[%clk 0:07:18]} 17. Qh5 {[%clk 0:07:18]}  Bb4 {[%clk 0:06:33]} 18. f4 {[%clk 0:06:42]}  Bxc3 {[%clk 0:05:20]} 19. bxc3 {[%clk 0:06:42]}  exf4 {[%clk 0:05:21]} 20. Rxf4 {[%clk 0:06:35]}  Qb6+ {[%clk 0:04:40]} 21. Bf2 {[%clk 0:06:29]}  Qb5 {[%clk 0:04:24]} 22. Qh4 {[%clk 0:06:06]}  Rad8 {[%clk 0:04:01]} 23. Be4 {[%clk 0:05:58]}  h6 {[%clk 0:04:01]} 24. Kh1 {[%clk 0:05:39]}  Bd5 {[%clk 0:03:35]} 25. Rg1 {[%clk 0:05:28]}  Bxe4+ {[%clk 0:03:36]} 26. Rxe4 {[%clk 0:05:29]}  Qf5 {[%clk 0:03:14]} 27. Reg4 {[%clk 0:05:27]}  Qf3+ {[%clk 0:02:35]} 28. R1g2 {[%clk 0:05:28]}  Rd1+ {[%clk 0:02:30]} 29. Bg1 {[%clk 0:05:29]}  g6 {[%clk 0:02:08]} 30. Qxh6 {[%clk 0:05:26]}  Rfd8 {[%clk 0:01:14]} 31. h3 {[%clk 0:05:03]}  R8d2 {[%clk 0:00:47]} 32. Kh2 {[%clk 0:04:56]}  Rxg2+ {[%clk 0:00:41]} 33. Rxg2 {[%clk 0:04:58]}  Ne5 {[%clk 0:00:23]} 34. Bd4 {[%clk 0:04:37]}  Qe4 {[%clk 0:00:20]} 35. Kg3 {[%clk 0:03:51]}  Qf3+ {[%clk 0:00:21]} 36. Kh2 {[%clk 0:03:52]}  Qe4 {[%clk 0:00:23]} 37. Kg3 {[%clk 0:03:53]}  Qe1+ {[%clk 0:00:21]} 38. Kf4 {[%clk 0:03:45]}  Rxd4+ {[%clk 0:00:19]} 39. cxd4 {[%clk 0:03:45]}  Qc1+ {[%clk 0:00:20]} 40. Kxe5 {[%clk 0:03:44]}  Qxh6 {[%clk 0:00:22]} 41. d5 {[%clk 0:03:43]}  Qh5+ {[%clk 0:00:22]} 42. Kd6 {[%clk 0:03:44]}  Qxh3 {[%clk 0:00:22]} 43. Rd2 {[%clk 0:03:43]}  Qa3+ {[%clk 0:00:20]} 44. Kd7 {[%clk 0:03:41]}  Qa4+ {[%clk 0:00:22]} 45. Kc7 {[%clk 0:03:41]}  Qa5+ {[%clk 0:00:23]} 0-1


[Site "Internet"]

[Event "Chessable Masters - Torneo preliminare"]
[White "Oparin, Grigoriy"]
[Black "Harikrishna, Pentala"]
[WhiteFideId "24125890"]
[BlackFideId "5007003"]
[WhiteElo "2650"]
[BlackElo "2627"]
[Result "1/2-1/2"]
[Round "6"]
[TimeControl "600+2"]
[Date "2023.03.13"]
[WhiteClock "0:03:10"]
[BlackClock "0:00:24"]

1. d4 {[%clk 0:10:01]}  Nf6 {[%clk 0:10:00]} 2. c4 {[%clk 0:10:03]}  e6 {[%clk 0:10:01]} 3. Nf3 {[%clk 0:10:04]}  d5 {[%clk 0:10:02]} 4. g3 {[%clk 0:10:06]}  Be7 {[%clk 0:10:04]} 5. Bg2 {[%clk 0:10:07]}  O-O {[%clk 0:10:05]} 6. Qc2 {[%clk 0:10:07]}  c5 {[%clk 0:10:05]} 7. dxc5 {[%clk 0:10:09]}  Qa5+ {[%clk 0:09:52]} 8. Nc3 {[%clk 0:10:09]}  dxc4 {[%clk 0:09:32]} 9. O-O {[%clk 0:10:10]}  Qxc5 {[%clk 0:09:30]} 10. Bg5 {[%clk 0:10:10]}  Nc6 {[%clk 0:09:26]} 11. Rfd1 {[%clk 0:10:05]}  e5 {[%clk 0:09:07]} 12. Bxf6 {[%clk 0:09:50]}  Bxf6 {[%clk 0:09:04]} 13. Ne4 {[%clk 0:09:51]}  Qe7 {[%clk 0:09:05]} 14. Qxc4 {[%clk 0:09:50]}  Be6 {[%clk 0:08:44]} 15. Qb5 {[%clk 0:09:50]}  Rad8 {[%clk 0:08:31]} 16. Nxf6+ {[%clk 0:09:34]}  gxf6 {[%clk 0:08:27]} 17. e3 {[%clk 0:09:06]}  Qb4 {[%clk 0:08:13]} 18. Qxb4 {[%clk 0:09:07]}  Nxb4 {[%clk 0:08:14]} 19. a3 {[%clk 0:09:09]}  Nd3 {[%clk 0:07:42]} 20. Rd2 {[%clk 0:09:00]}  Nc5 {[%clk 0:07:22]} 21. Rad1 {[%clk 0:08:57]}  Rxd2 {[%clk 0:07:15]} 22. Rxd2 {[%clk 0:08:59]}  Nb3 {[%clk 0:07:05]} 23. Rc2 {[%clk 0:09:00]}  Rd8 {[%clk 0:07:06]} 24. h3 {[%clk 0:08:54]}  a5 {[%clk 0:06:41]} 25. g4 {[%clk 0:06:13]}  b5 {[%clk 0:06:16]} 26. Nh4 {[%clk 0:05:50]}  Rd1+ {[%clk 0:05:57]} 27. Kh2 {[%clk 0:05:50]}  Rd2 {[%clk 0:05:47]} 28. Rxd2 {[%clk 0:05:50]}  Nxd2 {[%clk 0:05:48]} 29. Bc6 {[%clk 0:05:40]}  b4 {[%clk 0:05:46]} 30. axb4 {[%clk 0:05:41]}  axb4 {[%clk 0:05:47]} 31. Bb5 {[%clk 0:05:29]}  Kf8 {[%clk 0:04:23]} 32. Kg3 {[%clk 0:04:59]}  Bc4 {[%clk 0:04:04]} 33. Bc6 {[%clk 0:04:57]}  Bd3 {[%clk 0:04:01]} 34. Bd5 {[%clk 0:04:53]}  Be4 {[%clk 0:03:06]} 35. Bxe4 {[%clk 0:04:52]}  Nxe4+ {[%clk 0:03:08]} 36. Kg2 {[%clk 0:03:42]}  Nd6 {[%clk 0:02:18]} 37. Nf3 {[%clk 0:03:42]}  Ke7 {[%clk 0:02:06]} 38. Nd2 {[%clk 0:03:39]}  f5 {[%clk 0:01:48]} 39. gxf5 {[%clk 0:03:22]}  Nxf5 {[%clk 0:01:49]} 40. Kf3 {[%clk 0:03:23]}  Ke6 {[%clk 0:01:39]} 41. Kg4 {[%clk 0:03:22]}  Nd6 {[%clk 0:00:56]} 42. Kg5 {[%clk 0:03:05]}  Kd5 {[%clk 0:00:40]} 43. Kh6 {[%clk 0:03:05]}  Nc4 {[%clk 0:00:18]} 44. Nxc4 {[%clk 0:03:06]}  Kxc4 {[%clk 0:00:20]} 45. Kxh7 {[%clk 0:03:08]}  Kb3 {[%clk 0:00:21]} 46. h4 {[%clk 0:03:08]}  Kxb2 {[%clk 0:00:22]} 47. h5 {[%clk 0:03:09]}  b3 {[%clk 0:00:21]} 48. h6 {[%clk 0:03:11]}  Kc3 {[%clk 0:00:19]} 49. Kg7 {[%clk 0:03:12]}  b2 {[%clk 0:00:21]} 50. h7 {[%clk 0:03:13]}  b1=Q {[%clk 0:00:22]} 51. h8=Q {[%clk 0:03:15]}  Qg1+ {[%clk 0:00:23]} 52. Kxf7 {[%clk 0:03:05]}  Qxf2+ {[%clk 0:00:22]} 53. Ke6 {[%clk 0:03:06]}  Qxe3 {[%clk 0:00:23]} 54. Qxe5+ {[%clk 0:03:08]}  Qxe5+ {[%clk 0:00:24]} 55. Kxe5 {[%clk 0:03:10]} 1/2-1/2


[Site "Internet"]